bitfinex-derivatives/quotes_SOLF0:USTF0_20240910
["timestamp","ask_amount","ask_price","bid_price","bid_amount"]
[1725974248072,14.35,133.97,133.9,3.70489656]
[1725974248474,14.35,133.97,133.89,2.6648]
[1725974248973,14.35,133.97,133.89,6.48110061]
[1725974250466,14.35,133.97,133.89,2.6648]
[1725974253082,14.35,133.95,133.88,5.09694004]
[1725974254079,9.18,133.91,133.88,5.09694004]
[1725974256679,3.77026171,133.98,133.88,5.09694004]
[1725974256888,9.18,133.94,133.88,14.27694004]
[1725974258882,9.18,133.95,133.89,9.18]
[1725974259685,4.1065,134.0,133.92,9.18]
[1725974259888,9.18,133.98,133.92,9.18]
[1725974261686,1.3682,134.0,133.92,9.18]
[1725974261884,10.5482,134.0,133.94,9.18]
[1725974262087,101.28650717,134.02,133.92,14.34]
[1725974262389,14.34,134.02,133.93,2.7358]
[1725974267087,14.34,134.02,133.93,4.1084]
[1725974270788,3.77222097,134.03,133.93,4.1084]
[1725974270989,14.34,134.02,133.93,4.1084]
[1725974271194,17.98685236,134.02,133.93,4.1084]
[1725974271893,1.3418,134.06,133.93,4.1084]
[1725974272193,1.3418,134.06,133.96,14.34]
[1725974272396,14.34,134.05,133.96,14.34]
[1725974272891,1.3418,134.06,133.96,14.34]
[1725974273087,15.6818,134.06,133.96,14.34]
[1725974273590,15.6818,134.06,133.96,18.10810512]
[1725974273989,14.34,134.04,133.96,3.76810512]
[1725974274194,14.34,134.04,133.93,18.4484]
[1725974274395,1.3418,134.06,133.93,18.4484]
[1725974274590,14.34,134.05,133.95,14.34]
[1725974274796,14.34,134.05,133.95,17.99984769]
[1725974277792,14.34,134.03,133.95,3.65984769]
[1725974277991,3.67067963,134.04,133.93,18.4484]
[1725974278295,1.3418,134.06,133.93,18.4484]
[1725974278600,14.34,134.05,133.93,18.4484]
[1725974280797,14.34,134.05,133.95,14.34]
[1725974280989,14.34,134.05,133.95,18.15887412]
[1725974281395,14.34,134.05,133.93,4.1084]
[1725974281396,14.34,134.02,133.93,2.7639]
[1725974281592,2.7565,134.01,133.93,6.52304588]
[1725974281787,14.34,133.99,133.89,14.34]
[1725974281989,14.34,133.99,133.9,3.73077497]
[1725974282194,9.18,133.95,133.9,3.73077497]
[1725974282489,4.0937,134.01,133.76,3.65126175]
[1725974282490,9.18,133.92,133.77,7.475]
[1725974282693,9.18,133.91,133.85,9.18]
[1725974282895,9.18,133.91,133.85,12.94129658]
[1725974283297,9.18,133.87,133.77,8.8249]
[1725974283593,9.18,133.87,133.81,9.18]
[1725974284099,14.35,133.9,133.8,14.35]
[1725974284297,14.35,133.86,133.78,7.475]
[1725974284507,1.3732,133.85,133.78,7.475]
[1725974285197,1.3732,133.85,133.68,8.8229]
[1725974285406,1.3381,133.84,133.78,7.475]
[1725974285592,14.35,133.83,133.78,7.475]
[1725974285997,1.3381,133.84,133.78,7.475]
[1725974286914,1.3732,133.85,133.78,7.475]
[1725974287492,14.35,133.87,133.78,7.475]
[1725974287692,1.3942,133.89,133.79,14.35]
[1725974288504,1.3942,133.89,133.81,14.35]
[1725974289000,15.7442,133.92,133.83,14.35]
[1725974289307,15.7442,133.92,133.81,14.35]
[1725974289606,14.35,133.9,133.81,14.35]
[1725974291595,1.3942,133.92,133.81,14.35]
[1725974292407,14.35,133.91,133.81,14.35]
[1725974293906,1.3942,133.92,133.76,5.21645248]
[1725974293907,14.35,133.85,133.79,7.475]
[1725974294103,1.346,133.84,133.79,7.475]
[1725974294805,1.346,133.84,133.76,1.3959]
[1725974297906,1.346,133.84,133.77,7.475]
[1725974298710,22.96,133.87,133.77,7.475]
[1725974298915,22.96,133.87,133.77,8.8535]
[1725974301312,1.3077,133.89,133.77,8.8535]
[1725974301608,22.96,133.87,133.77,8.8535]
[1725974302207,22.96,133.87,133.78,1.2765]
[1725974302406,22.96,133.88,133.78,1.2765]
[1725974304403,1.3077,133.89,133.78,1.2765]
[1725974304603,22.96,133.88,133.78,1.2765]
[1725974305018,1.3077,133.89,133.78,1.2765]
[1725974305208,22.96,133.87,133.78,1.2765]
[1725974306112,1.3077,133.89,133.78,1.2765]
[1725974306312,22.96,133.88,133.78,1.2765]
[1725974307017,24.2677,133.89,133.78,1.2765]
[1725974308123,22.96,133.87,133.78,1.2765]
[1725974308415,1.3077,133.89,133.78,1.2765]
[1725974308616,22.96,133.88,133.78,1.2765]
[1725974309720,24.2677,133.89,133.78,1.2765]
[1725974311619,1.3077,133.89,133.78,1.2765]
[1725974311821,22.96,133.88,133.78,1.2765]
[1725974314632,1.3077,133.89,133.78,31.7115]
[1725974315924,1.3077,133.89,133.8,22.96]
[1725974317332,1.3634,133.93,133.82,22.96]
[1725974317528,1.3634,133.93,133.83,1.3479]
[1725974317721,2.7514,133.93,133.83,1.3479]
[1725974319029,2.7514,133.93,133.83,2.6613]
[1725974320230,14.34,133.92,133.83,2.6613]
[1725974323839,14.34,133.92,133.83,17.0013]
[1725974326539,14.34,133.92,133.84,1.3915]
[1725974328845,14.34,133.9,133.74,7.475]
[1725974329035,14.34,133.9,133.79,14.34]
[1725974329736,18.03984667,133.9,133.79,18.0226624]
[1725974330735,14.34,133.9,133.79,18.0226624]
[1725974335547,14.34,133.88,133.77,21.815]
[1725974335844,14.34,133.86,133.78,11.24041364]
[1725974336037,14.34,133.86,133.78,7.475]
[1725974336641,14.34,133.86,133.79,3.71833196]
[1725974337040,14.34,133.86,133.77,7.475]
[1725974337542,14.34,133.86,133.77,11.29312065]
[1725974337743,14.34,133.86,133.77,7.475]
[1725974338045,14.34,133.86,133.77,11.25088397]
[1725974343045,14.34,133.86,133.77,25.59088397]
[1725974343251,2.7252,133.87,133.79,14.34]
[1725974343446,1.3326,133.87,133.79,14.34]
[1725974348053,14.34,133.9,133.79,14.34]
[1725974350056,14.34,133.9,133.79,21.815]
[1725974351149,14.34,133.9,133.81,14.34]
[1725974351349,14.34,133.9,133.82,1.3757]
[1725974354044,1.2761,133.92,133.83,1.3114]
[1725974354251,9.18,133.91,133.85,9.18]
[1725974354453,9.18,133.91,133.85,12.93112074]
[1725974355864,9.18,133.91,133.85,9.18]
[1725974356048,1.2761,133.92,133.85,3.65286909]
[1725974356352,1.2761,133.92,133.84,14.33]
[1725974356759,1.2761,133.92,133.84,17.97465032]
[1725974356952,14.33,133.94,133.84,17.97465032]
[1725974358568,14.33,133.94,133.85,7.475]
[1725974364655,14.33,133.97,133.86,14.33]
[1725974365763,4.1375,133.99,133.89,14.33]
[1725974365955,4.1375,133.99,133.91,14.33]
[1725974366662,4.1375,133.99,133.92,3.66081434]
[1725974368162,4.1375,133.99,133.91,14.33]
[1725974368567,4.1375,133.99,133.91,17.99318147]
[1725974369061,2.7363,133.99,133.91,17.99318147]
[1725974369257,1.38,133.99,133.91,17.99318147]
[1725974370058,1.38,133.99,133.92,2.7047]
[1725974370260,1.38,133.99,133.93,14.33]
[1725974371165,1.38,133.99,133.92,2.7047]
[1725974372865,14.33,134.01,133.92,2.7047]
[1725974376062,9.18,134.01,133.95,9.18]
[1725974378666,9.18,134.01,133.94,9.18]
[1725974380668,2.6519,134.02,133.94,9.18]
[1725974380869,9.18,134.01,133.95,9.18]
[1725974384172,1.3715,134.02,133.95,9.18]
[1725974384472,1.3813,134.03,133.98,9.18]
[1725974386671,9.18,134.02,133.96,9.18]
[1725974387470,3.65574906,134.06,133.98,9.18]
[1725974387675,9.18,134.04,133.97,9.18]
[1725974394282,9.18,134.04,133.93,1.4]
[1725974394584,9.18,134.02,133.96,9.18]
[1725974396501,9.18,134.01,133.96,9.18]
[1725974397099,9.18,134.02,133.96,9.18]
[1725974397391,9.18,134.01,133.93,1.4]
[1725974397593,9.18,134.01,133.95,9.18]
[1725974398186,9.18,134.01,133.96,9.18]
[1725974399693,9.18,134.02,133.96,9.18]
[1725974402693,9.18,134.02,133.95,9.18]
[1725974402997,9.18,134.0,133.94,9.18]
[1725974404301,9.18,134.02,133.95,9.18]
[1725974405592,9.18,134.02,133.96,9.18]
[1725974407487,1.2999,134.05,133.96,9.18]
[1725974407794,9.18,134.03,133.96,9.18]
[1725974407994,1.2999,134.05,133.97,9.18]
[1725974408200,9.18,134.03,133.97,9.18]
[1725974408500,9.18,134.03,133.98,3.8230683]
[1725974408802,9.18,134.04,133.97,9.18]
[1725974409190,9.18,134.04,133.98,3.70548712]
[1725974409594,9.18,134.04,133.98,5.11398712]
[1725974410099,10.4799,134.05,133.99,9.18]
[1725974411194,10.4799,134.05,133.98,14.29398712]
[1725974414104,9.18,134.04,133.98,14.29398712]
[1725974423914,1.2999,134.05,134.0,9.18]
[1725974425411,10.4799,134.05,134.0,9.18]
[1725974426714,6.32179862,134.08,134.0,9.18]
[1725974426911,9.18,134.06,134.0,9.18]
[1725974428021,9.18,134.06,134.01,9.18]
[1725974429814,1.3727,134.08,134.01,9.18]
[1725974430015,97.36280212,134.09,134.03,9.18]
[1725974431318,9.18,134.08,134.02,9.18]
[1725974431519,1.2903,134.09,134.02,9.18]
[1725974431714,9.18,134.08,134.02,9.18]
[1725974433814,9.18,134.07,134.0,9.18]
[1725974434814,1.2903,134.09,134.02,9.18]
[1725974435009,9.18,134.08,134.02,9.18]
[1725974436114,9.18,134.08,134.03,9.18]
[1725974436617,86.85225957,134.13,134.03,9.18]
[1725974436818,9.18,134.11,134.04,9.18]
[1725974437425,88.23975957,134.13,134.06,9.18]
[1725974437618,97.41975957,134.13,134.06,9.18]
[1725974439517,9.18,134.11,134.05,3.74673531]
[1725974439717,88.23975957,134.13,134.05,3.74673531]
[1725974439921,9.18,134.11,134.05,3.74673531]
[1725974441127,88.23975957,134.13,134.06,9.18]
[1725974441428,9.18,134.12,134.06,9.18]
[1725974443326,1.3875,134.13,134.06,9.18]
[1725974443528,9.18,134.12,134.06,9.18]
[1725974444622,9.18,134.12,134.05,3.81378692]
[1725974444822,9.18,134.12,134.05,12.99378692]
[1725974445327,9.18,134.12,134.05,3.81378692]
[1725974445519,9.18,134.09,134.03,9.18]
[1725974446020,9.18,134.09,133.99,2.7126]
[1725974446222,1.3875,134.13,134.02,9.18]
[1725974446223,9.18,134.08,134.02,9.18]
[1725974446923,9.18,134.08,133.99,2.7126]
[1725974447232,9.18,134.08,134.02,9.18]
[1725974449830,9.18,134.06,133.99,2.7126]
[1725974450334,9.18,134.06,133.99,11.8926]
[1725974454626,9.18,134.06,134.0,9.18]
[1725974455932,1.3431,134.08,133.99,2.7126]
[1725974455933,10.5231,134.08,134.02,9.18]
[1725974457732,9.18,134.07,134.02,9.18]
[1725974458727,1.3431,134.08,134.02,9.18]
[1725974458931,10.5231,134.08,134.02,9.18]
[1725974459328,18.22578534,134.17,134.02,9.18]
[1725974459635,9.18,134.09,134.03,9.18]
[1725974464836,9.18,134.1,134.04,9.18]
[1725974465334,9.18,134.11,134.05,9.18]
[1725974466034,9.18,134.11,134.05,12.99006671]
[1725974466430,9.18,134.11,134.05,9.18]
[1725974468435,9.18,134.11,134.05,12.88504402]
[1725974469539,9.18,134.12,133.99,2.7126]
[1725974469740,9.18,134.12,134.05,9.18]
[1725974470845,9.18,134.09,133.99,2.7126]
[1725974471044,3.69544131,134.09,133.99,2.7126]
[1725974471236,1.344,134.11,133.99,2.7126]
[1725974471237,9.18,134.05,133.99,11.8926]
[1725974472150,9.18,134.03,133.99,1.3454]
[1725974472643,9.18,134.05,133.99,9.18]
[1725974475452,9.18,134.06,134.0,9.18]
[1725974475851,9.18,134.06,134.01,9.18]
[1725974476157,1.3512,134.08,134.02,9.18]
[1725974476158,10.5312,134.08,134.02,9.18]
[1725974476948,9.18,134.09,134.02,9.18]
[1725974477350,9.18,134.09,134.04,9.18]
[1725974478350,9.18,134.1,134.04,9.18]
[1725974480258,9.18,134.1,134.05,9.18]
[1725974482455,9.18,134.09,133.99,1.4082]
[1725974482759,9.18,134.07,134.0,9.18]
[1725974483655,10.5233,134.08,134.0,9.18]
[1725974491666,9.18,134.06,134.0,9.18]
[1725974491868,9.18,134.06,133.99,11.9486]
[1725974495467,9.18,134.06,133.99,10.5882]
[1725974503574,1.3433,134.08,133.99,1.4082]
[1725974503575,9.18,134.05,133.99,1.4082]
[1725974503877,9.18,134.05,133.98,5.1662408]
[1725974503878,9.18,134.02,133.98,1.4085]
[1725974505273,9.18,134.03,133.98,1.4085]
[1725974515585,9.18,134.02,133.98,1.4085]
[1725974517685,5.0870474,134.08,133.98,1.4085]
[1725974517893,9.18,134.03,133.98,1.4085]
[1725974518284,9.18,134.01,133.98,1.4085]
[1725974520388,9.18,134.0,133.94,10.546]
[1725974520987,9.18,134.0,133.95,3.73096457]
[1725974523280,1.3234,134.03,133.96,9.18]
[1725974523482,9.18,134.02,133.96,12.83744252]
[1725974525701,3.80000813,134.06,133.98,9.18]
[1725974525999,1.3849,134.1,133.98,9.18]
[1725974526000,9.18,134.04,133.98,9.18]
[1725974527300,1.324,134.09,134.01,9.18]
[1725974527598,9.18,134.06,134.01,9.18]
[1725974530500,9.18,134.05,133.99,11.7695]
[1725974530795,9.18,134.04,133.99,2.5895]
[1725974535705,9.18,134.04,133.99,1.2737]
[1725974538004,9.18,134.04,133.98,9.18]
[1725974545216,9.18,134.02,133.97,1.3158]
[1725974546707,9.18,134.02,133.97,2.5894]
[1725974550421,9.18,134.01,133.97,2.5894]
[1725974550622,9.18,134.02,133.97,2.5894]
[1725974554017,9.18,134.01,133.96,3.65744252]
[1725974554224,9.18,133.99,133.86,7.479]
[1725974554415,9.18,133.99,133.92,9.18]
[1725974559415,9.18,133.98,133.86,7.479]
[1725974559616,9.18,133.98,133.91,9.18]
[1725974563021,9.18,133.98,133.93,9.18]
[1725974563221,9.18,133.99,133.94,3.74057131]
[1725974563913,4.027,134.04,133.94,3.74057131]
[1725974564120,9.18,134.01,133.94,9.18]
[1725974564327,9.18,134.01,133.95,3.6677685]
[1725974564622,9.18,133.99,133.95,3.6677685]
[1725974564825,9.18,133.99,133.93,9.18]
[1725974565225,9.18,133.99,133.94,3.64910111]
[1725974574841,9.18,133.99,133.93,9.18]
[1725974575046,9.18,133.99,133.94,3.81271606]
[1725974576251,9.18,133.98,133.93,9.18]
[1725974576753,9.18,133.98,133.93,12.8278096]
[1725974581446,4.027,134.04,133.93,12.8278096]
[1725974581644,9.18,133.99,133.93,12.8278096]
[1725974582054,9.18,133.98,133.93,12.8278096]
[1725974582651,9.18,133.98,133.86,11.27902986]
[1725974582857,9.18,133.98,133.91,9.18]
[1725974583561,9.18,133.98,133.92,9.18]
[1725974583750,9.18,133.98,133.93,3.76931909]
[1725974588963,4.027,134.04,133.86,11.27902986]
[1725974588964,9.18,134.01,133.95,9.18]
[1725974589152,9.18,134.01,133.95,12.82535882]
[1725974589555,4.027,134.04,133.95,12.82535882]
[1725974589756,9.18,134.03,133.96,9.18]
[1725974590157,9.18,134.02,133.96,9.18]
[1725974590551,9.18,134.02,133.97,3.74384052]
[1725974590961,9.18,134.02,133.96,9.18]
[1725974591364,9.18,134.02,133.96,12.82192922]
[1725974592556,9.18,134.02,133.96,3.64192922]
[1725974592865,9.18,134.02,133.95,9.18]
[1725974593061,9.18,134.02,133.96,3.79908914]
[1725974601371,9.18,134.02,133.96,12.97908914]
[1725974601972,9.18,134.02,133.96,3.79908914]
[1725974602176,9.18,134.0,133.94,2.7176]
[1725974602369,9.18,134.0,133.94,5.04597599]
[1725974603771,4.027,134.04,133.96,9.18]
[1725974603965,9.18,134.03,133.96,9.18]
[1725974604161,9.18,134.01,133.95,1.2983]
[1725974604368,9.18,134.01,133.95,10.4783]
[1725974604567,9.18,134.01,133.96,9.18]
[1725974605171,4.027,134.04,133.96,9.18]
[1725974605376,9.18,134.02,133.96,9.18]
[1725974608876,9.18,134.02,133.95,1.2983]
[1725974609082,9.18,134.02,133.96,9.18]
[1725974615787,1.3523,134.04,133.97,9.18]
[1725974615982,3.73543906,134.08,133.97,9.18]
[1725974616181,9.18,134.04,133.97,9.18]
[1725974618775,9.18,134.04,133.98,9.18]
[1725974619188,9.18,134.05,133.98,9.18]
[1725974619586,9.18,134.05,134.0,9.18]
[1725974620491,1.3882,134.07,134.0,9.18]
[1725974620688,9.18,134.06,134.0,9.18]
[1725974620881,9.18,134.06,134.01,3.68142121]
[1725974621986,1.3882,134.07,134.01,3.68142121]
[1725974622196,10.5682,134.07,134.01,3.68142121]
[1725974623796,1.3882,134.07,134.01,3.68142121]
[1725974623987,10.5682,134.07,134.01,3.68142121]
[1725974624387,9.18,134.05,134.01,3.68142121]
[1725974624589,9.18,134.05,133.99,1.2994]
[1725974625092,9.18,134.05,133.99,10.4794]
[1725974631702,1.3882,134.07,133.99,10.4794]
[1725974631901,9.18,134.05,133.99,10.4794]
[1725974635604,10.5682,134.07,133.99,10.4794]
[1725974635999,10.5682,134.07,134.01,9.18]
[1725974636302,10.5682,134.07,134.01,3.74729457]
[1725974636303,9.18,134.05,134.01,3.74729457]
[1725974636604,9.18,134.05,134.0,9.18]
[1725974637497,9.18,134.05,134.01,3.78423762]
[1725974637697,9.18,134.05,134.0,9.18]
[1725974638102,9.18,134.05,134.01,3.79916411]
[1725974638303,9.18,134.06,134.01,3.79916411]
[1725974644805,9.18,134.06,133.99,10.4794]
[1725974648012,9.18,134.06,134.01,9.18]
[1725974648213,9.18,134.06,134.01,3.65400403]
[1725974648408,9.18,134.06,134.0,9.18]
[1725974648610,9.18,134.05,133.99,1.2994]
[1725974648917,9.18,134.05,133.98,12.98588103]
[1725974649411,5.05339889,134.07,133.96,1.3994]
[1725974649412,9.18,134.03,133.96,1.3994]
[1725974649611,9.18,134.02,133.96,10.5794]
[1725974649806,1.3882,134.07,133.96,10.5794]
[1725974650008,9.18,134.05,133.99,9.18]
[1725974658314,9.18,134.05,133.98,9.18]
[1725974658520,9.18,134.04,133.98,9.18]
[1725974658720,9.18,134.04,133.96,14.37184719]
[1725974658931,9.18,134.02,133.96,14.37184719]
[1725974661721,9.18,134.04,133.96,14.37184719]
[1725974663830,9.18,134.04,133.96,10.5794]
[1725974664331,9.18,134.04,133.97,3.78881755]
[1725974666327,9.18,134.04,133.96,10.5794]
[1725974666328,5.11580525,134.07,133.98,9.18]
[1725974666523,9.18,134.04,133.98,12.86692598]
[1725974670528,9.18,134.05,133.99,9.18]
[1725974671122,1.3882,134.07,133.99,9.18]
[1725974671324,9.18,134.05,133.99,9.18]
[1725974673634,1.3882,134.07,133.99,9.18]
[1725974673836,9.18,134.05,133.99,9.18]
[1725974682947,9.18,134.04,133.98,12.86692598]
[1725974683141,9.18,134.04,133.98,9.18]
[1725974683342,1.3882,134.07,133.99,9.18]
[1725974683545,9.18,134.05,133.99,9.18]
[1725974685746,9.18,134.05,133.96,5.06525221]
[1725974685747,2.7272,134.1,134.01,9.18]
[1725974685960,9.18,134.08,134.01,9.18]
[1725974686455,9.18,134.06,134.01,9.18]
[1725974688047,9.18,134.05,133.96,5.06525221]
[1725974688353,9.18,134.05,133.99,9.18]
[1725974689855,9.18,134.05,133.96,5.06525221]
[1725974690054,9.18,134.05,133.99,9.18]
[1725974690853,2.7272,134.1,133.99,9.18]
[1725974691050,9.18,134.05,133.99,9.18]
[1725974696958,9.18,134.05,133.96,5.06525221]
[1725974697152,9.18,134.05,133.99,9.18]
[1725974699755,9.18,134.03,133.96,5.06525221]
[1725974700058,9.18,134.03,133.98,9.18]
[1725974700362,9.18,134.01,133.96,1.3994]
[1725974700663,9.18,133.99,133.94,1.3543]
[1725974700861,9.18,133.98,133.94,1.3543]
[1725974701164,9.18,133.96,133.87,7.469]
[1725974701364,225.0,134.04,133.92,9.18]
[1725974701661,6.37080215,134.1,133.92,9.18]
[1725974701662,9.18,133.98,133.92,9.18]
[1725974706061,9.18,133.98,133.92,12.91991935]
[1725974706466,9.18,133.97,133.92,12.91991935]
[1725974706662,9.18,133.95,133.9,9.18]
[1725974706864,9.18,133.95,133.91,3.81571087]
[1725974707959,9.18,133.94,133.88,1.3444]
[1725974708165,9.18,133.94,133.88,10.5244]
[1725974708571,9.18,133.94,133.88,14.32657369]
[1725974708771,9.18,133.94,133.88,10.5244]
[1725974709071,9.18,133.94,133.88,14.20262223]
[1725974709264,9.18,133.94,133.88,5.02262223]
[1725974710772,9.18,133.94,133.88,1.3444]
[1725974711173,9.18,133.94,133.89,3.72488331]
[1725974711966,9.18,133.93,133.86,2.635]
[1725974712170,9.18,133.91,133.86,15.61943015]
[1725974713279,9.18,133.91,133.86,11.815]
[1725974713476,9.18,133.91,133.86,1.3522]
[1725974713977,9.18,133.91,133.86,5.01098101]
[1725974714571,9.18,133.91,133.86,14.19098101]
[1725974721289,4.1714,133.98,133.86,1.3522]
[1725974721290,9.18,133.9,133.86,1.3522]
[1725974721478,9.18,133.9,133.85,3.79939589]
[1725974721677,9.18,133.9,133.84,9.18]
[1725974721873,9.18,133.9,133.85,9.18]
[1725974722071,3.72730747,133.95,133.85,9.18]
[1725974722278,9.18,133.92,133.85,9.18]
[1725974723478,9.18,133.9,133.85,9.18]
[1725974723679,9.18,133.9,133.78,1.3877]
[1725974723887,9.18,133.89,133.82,9.18]
[1725974724978,9.18,133.89,133.84,9.18]
[1725974725177,9.18,133.89,133.85,3.82396006]
[1725974725788,9.18,133.9,133.85,3.82396006]
[1725974726387,9.18,133.9,133.84,9.18]
[1725974726688,9.18,133.9,133.85,3.80229456]
[1725974726889,9.18,133.89,133.78,1.3877]
[1725974727088,9.18,133.89,133.83,9.18]
[1725974728378,2.7069,133.92,133.85,9.18]
[1725974728583,10.5611,133.92,133.86,9.18]
[1725974729292,10.5611,133.92,133.87,3.79399237]
[1725974730293,2.7132,133.96,133.89,9.18]
[1725974730494,9.18,133.96,133.91,9.18]
[1725974730894,9.18,133.95,133.89,12.9337358]
[1725974731094,9.18,133.95,133.89,9.18]
[1725974731687,9.18,133.95,133.89,12.87433652]
[1725974732088,9.18,133.95,133.88,9.18]
[1725974732293,9.18,133.95,133.88,12.84968021]
[1725974732593,9.18,133.93,133.88,12.84968021]
[1725974732984,9.18,133.92,133.88,3.66968021]
[1725974736097,9.18,133.92,133.87,16.649]
[1725974736496,9.18,133.92,133.87,20.42915985]
[1725974736689,9.18,133.93,133.87,20.42915985]
[1725974736886,86.94537837,133.97,133.88,9.18]
[1725974736887,9.18,133.94,133.88,9.18]
[1725974737991,9.18,133.94,133.88,11.8228]
[1725974738496,9.18,133.95,133.89,9.18]
[1725974739493,96.12537837,133.97,133.91,9.18]
[1725974740502,9.18,133.98,133.92,9.18]
[1725974742104,9.18,133.99,133.92,9.18]
[1725974742504,9.18,133.97,133.92,9.18]
[1725974742709,9.18,133.96,133.91,9.18]
[1725974744406,4.1234,134.0,133.91,9.18]
[1725974744604,9.18,133.98,133.91,9.18]
[1725974744801,9.18,133.96,133.91,9.18]
[1725974746116,9.18,133.96,133.89,9.18]
[1725974747109,9.18,133.96,133.88,11.5114]
[1725974747316,9.18,133.96,133.9,9.18]
[1725974748608,9.18,133.95,133.9,9.18]
[1725974752211,9.18,133.95,133.89,3.74897303]
[1725974752413,9.18,133.95,133.88,13.2224]
[1725974752716,9.18,133.95,133.88,16.93888368]
[1725974755620,9.18,133.93,133.88,16.93888368]
[1725974760320,9.18,133.93,133.88,6.35928368]
[1725974760518,9.18,133.92,133.88,2.6428]
[1725974762913,9.18,133.92,133.87,3.72908574]
[1725974763218,9.18,133.92,133.86,9.18]
[1725974763625,3.6910897,133.98,133.88,9.18]
[1725974763822,9.18,133.94,133.88,9.18]
[1725974764024,9.18,133.94,133.88,13.00497041]
[1725974765126,9.18,133.93,133.88,13.00497041]
[1725974765323,9.18,133.93,133.86,9.18]
[1725974765924,9.18,133.93,133.87,3.73711317]
[1725974766122,9.18,133.92,133.87,3.73711317]
[1725974766434,9.18,133.92,133.86,9.18]
[1725974767020,9.18,133.92,133.86,12.92196851]
[1725974768027,9.18,133.92,133.86,3.74196851]
[1725974768221,9.18,133.92,133.85,16.649]
[1725974768423,9.18,133.92,133.86,3.69453563]
[1725974768620,9.18,133.9,133.86,3.69453563]
[1725974768820,9.18,133.9,133.82,7.469]
[1725974769030,9.18,133.89,133.83,9.18]
[1725974773835,9.18,133.89,133.84,3.71264423]
[1725974774128,9.18,133.88,133.81,7.469]
[1725974774328,9.18,133.88,133.82,16.649]
[1725974774723,9.18,133.88,133.82,20.33549622]
[1725974779336,1.3624,133.92,133.82,20.33549622]
[1725974779635,9.18,133.89,133.82,20.33549622]
[1725974781137,9.18,133.87,133.82,20.33549622]
[1725974782439,9.18,133.89,133.82,20.33549622]
[1725974783534,9.18,133.87,133.82,20.33549622]
[1725974785944,1.3624,133.92,133.82,20.33549622]
[1725974786135,9.18,133.88,133.82,20.33549622]
[1725974787043,9.18,133.86,133.82,11.15549622]
[1725974787345,9.18,133.86,133.82,7.469]
[1725974788141,9.18,133.85,133.8,2.6498]
[1725974788642,9.18,133.85,133.8,6.45565861]
[1725974789244,9.18,133.85,133.8,2.6498]
[1725974789736,6.44879228,133.9,133.8,2.6498]
[1725974789939,9.18,133.85,133.8,2.6498]